fUSD/lending_fUSD_20240223
["ID","MTS","AMOUNT","RATE_DAILY","PERIOD"]
[314947556,1708692660373,-150.0,0.00028838,2]
[314947557,1708692660383,-150.0,0.00028842,2]
[314947558,1708692660392,-150.0,0.00028844,2]
[314947559,1708692660401,-150.0,0.00028848,2]
[314947560,1708692660411,-150.0,0.00028854,2]
[314947561,1708692660420,-150.0,0.00028858,2]
[314947562,1708692660430,-150.0,0.0002886,2]
[314947563,1708692660439,-155.0,0.00028863,2]
[314947564,1708692660448,-150.0,0.00028868,2]
[314947565,1708692660458,-150.0,0.00028872,2]
[314947566,1708692660467,-150.0,0.00028873,2]
[314947567,1708692660476,-150.0,0.00028875,2]
[314947568,1708692660486,-150.0,0.00028876,7]
[314947569,1708692660495,-10000.0,0.00028887,2]
[314947570,1708692660505,-150.0,0.0002889,2]
[314947571,1708692660515,-150.0,0.00028895,2]
[314947572,1708692660525,-347.0,0.000289,2]
[314947573,1708692660535,-395.0,0.000289,2]
[314947574,1708692660545,-500.0,0.00028904,2]
[314947575,1708692660555,-500.0,0.00028904,2]
[314947576,1708692660564,-500.0,0.00028904,2]
[314947577,1708692660574,-500.0,0.00028904,2]
[314947578,1708692660584,-500.0,0.00028904,2]
[314947579,1708692660593,-500.0,0.00028904,2]
[314947580,1708692660603,-216.40032559,0.00028904,2]
[314947581,1708692660613,-503.84,0.00028904,2]
[314947582,1708692660623,-500.0,0.00028904,2]
[314947583,1708692660633,-500.0,0.00028904,2]
[314947584,1708692660644,-500.0,0.00028904,2]
[314947585,1708692660653,-500.0,0.00028904,2]
[314947586,1708692660662,-500.0,0.00028904,2]
[314947587,1708692660672,-504.93734006,0.00028904,2]
[314947588,1708692660681,-500.0,0.00028904,2]
[314947589,1708692660691,-500.0,0.00028904,2]
[314947590,1708692660701,-500.0,0.00028904,2]
[314947591,1708692660710,-687.16,0.00028904,2]
[314947592,1708692660720,-4492.57,0.00028904,2]
[314947593,1708692660730,-500.0,0.00028904,2]
[314947594,1708692660740,-500.0,0.00028904,2]
[314947595,1708692660753,-505.22,0.00028904,2]
[314947596,1708692660762,-500.0,0.00028904,2]
[314947597,1708692660772,-678.21,0.00028904,2]
[314947598,1708692660782,-566.18557604,0.00028904,2]
[314947599,1708692660791,-500.0,0.00028904,2]
[314947600,1708692660801,-500.0,0.00028904,2]
[314947601,1708692660811,-2419.95,0.00028904,2]
[314947602,1708692660821,-1389.55,0.00028904,2]
[314947603,1708692660830,-500.0,0.00028904,2]
[314947604,1708692660845,-500.0,0.00028904,2]
[314947605,1708692660856,-500.0,0.00028904,2]
[314947606,1708692660865,-1094.13,0.00028904,2]
[314947607,1708692660875,-500.0,0.00028904,2]
[314947608,1708692660885,-500.0,0.00028904,2]
[314947609,1708692660896,-1067.45,0.00028904,2]
[314947610,1708692660905,-1378.02,0.00028904,2]
[314947611,1708692660915,-1250.67,0.00028904,2]
[314947612,1708692660925,-500.0,0.00028904,2]
[314947613,1708692660935,-839.9,0.00028904,2]
[314947614,1708692660945,-500.0,0.00028904,2]
[314947615,1708692660955,-1152.06,0.00028904,2]
[314947616,1708692660964,-500.0,0.00028904,2]
[314947617,1708692660974,-8575.79,0.00028904,2]
[314947618,1708692660984,-1035.56,0.00028904,2]
[314947619,1708692660994,-500.0,0.00028904,2]
[314947620,1708692661004,-500.0,0.00028904,2]
[314947621,1708692661014,-500.0,0.00028904,2]
[314947622,1708692661023,-500.0,0.00028904,2]
[314947623,1708692661034,-500.0,0.00028904,2]
[314947624,1708692661044,-500.0,0.00028904,2]
[314947625,1708692661054,-553.04,0.00028904,2]
[314947626,1708692661064,-500.0,0.00028904,2]
[314947627,1708692661073,-1094.11,0.00028904,2]
[314947628,1708692661084,-500.0,0.00028904,2]
[314947629,1708692661094,-2230.04,0.00028904,2]
[314947630,1708692661105,-610.11,0.00028904,2]
[314947631,1708692661115,-1728.91,0.00028904,2]
[314947632,1708692661125,-513.99321279,0.00028904,2]
[314947633,1708692661135,-2471.7,0.00028904,2]
[314947634,1708692661146,-1384.33,0.00028904,2]
[314947635,1708692661156,-749.3,0.00028904,2]
[314947636,1708692661166,-500.0,0.00028904,2]
[314947637,1708692661176,-500.0,0.00028904,2]
[314947638,1708692661186,-807.94,0.00028904,2]
[314947639,1708692661196,-1029.11,0.00028904,2]
[314947640,1708692661206,-1015.68,0.00028904,2]
[314947641,1708692661216,-694.17,0.00028904,2]
[314947642,1708692661226,-785.24,0.00028904,2]
[314947643,1708692661236,-500.0,0.00028904,2]
[314947644,1708692661245,-500.0,0.00028904,2]
[314947645,1708692661255,-795.57,0.00028904,2]
[314947646,1708692661265,-1788.68,0.00028904,2]
[314947647,1708692661275,-2315.39,0.00028904,2]
[314947648,1708692661285,-1393.35,0.00028904,2]
[314947649,1708692661295,-500.0,0.00028904,2]
[314947650,1708692661305,-500.0,0.00028904,2]
[314947651,1708692661314,-617.77,0.00028904,2]
[314947652,1708692661324,-500.0,0.00028904,2]
[314947653,1708692661334,-2980.97,0.00028904,2]
[314947654,1708692661344,-977.62,0.00028904,2]
[314947655,1708692661353,-500.0,0.00028904,2]
[314947656,1708692661363,-500.0,0.00028904,2]
[314947657,1708692661372,-500.0,0.00028904,2]
[314947658,1708692661382,-500.0,0.00028904,2]
[314947659,1708692661392,-500.0,0.00028904,2]
[314947660,1708692661401,-500.0,0.00028904,2]
[314947661,1708692661410,-1880.69,0.00028904,2]
[314947662,1708692661420,-2152.11,0.00028904,2]
[314947663,1708692661430,-500.0,0.00028904,2]
[314947664,1708692661440,-500.0,0.00028904,2]
[314947665,1708692661450,-619.85,0.00028904,2]
[314947666,1708692661459,-642.74,0.00028904,2]
[314947667,1708692661468,-730.41,0.00028904,2]
[314947668,1708692661478,-500.0,0.00028904,2]
[314947669,1708692661487,-947.53,0.00028904,2]
[314947670,1708692661497,-639.34,0.00028904,2]
[314947671,1708692661506,-1392.77,0.00028904,2]
[314947672,1708692661516,-3459.37,0.00028904,2]
[314947673,1708692661525,-500.0,0.00028904,2]
[314947674,1708692661535,-554.51,0.00028904,2]
[314947675,1708692661544,-500.0,0.00028904,2]
[314947676,1708692661554,-7552.31,0.00028904,2]
[314947677,1708692661564,-875.12,0.00028904,2]
[314947678,1708692661574,-645.41,0.00028904,2]
[314947679,1708692661583,-150.0,0.00028905,2]
[314947680,1708692661593,-435.0,0.0002891,2]
[314947681,1708692661602,-150.0,0.0002891,2]
[314947682,1708692661612,-150.0,0.00028912,2]
[314947683,1708692661622,-150.0,0.00028922,2]
[314947684,1708692661631,-150.0,0.00028923,2]
[314947685,1708692661641,-150.0,0.00028925,2]
[314947686,1708692661651,-150.0,0.00028928,2]
[314947687,1708692661660,-150.0,0.00028928,2]
[314947688,1708692661669,-150.0,0.00028931,2]
[314947689,1708692661679,-150.0,0.0002894,2]
[314947690,1708692661688,-150.0,0.00028947,2]
[314947691,1708692661698,-1328.03193686,0.00028948,2]
[314947692,1708692661707,-150.0,0.00028949,2]
[314947693,1708692661717,-150.0,0.00028952,2]
[314947694,1708692661726,-150.0,0.00028956,2]
[314947695,1708692661735,-150.0,0.00028956,2]
[314947696,1708692661745,-150.0,0.00028957,2]
[314947697,1708692661754,-150.0,0.00028964,2]
[314947698,1708692661766,-150.0,0.00028971,2]
[314947699,1708692661776,-150.0,0.00028973,2]
[314947700,1708692661785,-150.0,0.00028976,2]
[314947701,1708692661795,-150.0,0.00028979,2]
[314947702,1708692661805,-150.0,0.00028983,2]
[314947703,1708692661814,-613.82963463,0.00028984,4]
[314947704,1708692661824,-150.0,0.00028986,2]
[314947705,1708692661834,-150.0,0.00028995,2]
[314947706,1708692661844,-899.99999904,0.00029,30]
[314947707,1708692661854,-8798.41,0.00029,2]
[314947708,1708692661863,-850.0,0.00029,3]
[314947709,1708692661873,-476.25,0.00029,2]
[314947710,1708692661883,-150.0,0.00029008,2]
[314947711,1708692661894,-150.0,0.00029009,2]
[314947712,1708692661904,-150.0,0.00029012,2]
[314947713,1708692661913,-150.0,0.00029018,2]
[314947714,1708692661923,-3115.44150694,0.0002902,2]
[314947715,1708692661933,-150.0,0.00029025,2]
[314947716,1708692661942,-150.0,0.00029031,2]
[314947717,1708692661952,-150.0,0.00029033,2]
[314947718,1708692661962,-150.0,0.00029034,2]
[314947719,1708692661971,-150.0,0.00029034,2]
[314947720,1708692661981,-162.59,0.00029036,2]
[314947721,1708692661991,-150.0,0.00029037,2]
[314947722,1708692662000,-150.0,0.00029037,2]
[314947723,1708692662009,-53702.2886903,0.00029039,2]
[314947724,1708692662019,-4253.83605333,0.0002904,2]
[314947725,1708692662136,-21530.50325425,0.00029041,2]
[314947726,1708692662151,-164.49282446,0.00029041,2]
[314947727,1708692662161,-500.0,0.00029041,2]
[314947728,1708692662171,-155.0,0.00029041,2]
[314947729,1708692662181,-564.71689339,0.00029041,2]
[314947730,1708692662190,-196.22850547,0.00029041,2]
[314947731,1708692662200,-500.0,0.00029041,2]
[314947732,1708692662209,-500.0,0.00029041,2]
[314947733,1708692662219,-500.0,0.00029041,2]
[314947734,1708692662228,-503.84,0.00029041,2]
[314947735,1708692662238,-500.0,0.00029041,2]
[314947736,1708692662247,-500.0,0.00029041,2]
[314947737,1708692662257,-500.0,0.00029041,2]
[314947738,1708692662267,-500.0,0.00029041,2]
[314947739,1708692662276,-500.0,0.00029041,2]
[314947740,1708692662286,-500.0,0.00029041,2]
[314947741,1708692662295,-500.0,0.00029041,2]
[314947742,1708692662304,-500.0,0.00029041,2]
[314947743,1708692662314,-687.16,0.00029041,2]
[314947744,1708692662323,-4492.57,0.00029041,2]
[314947745,1708692662332,-500.0,0.00029041,2]
[314947746,1708692662342,-500.0,0.00029041,2]
[314947747,1708692662351,-505.22,0.00029041,2]
[314947748,1708692662361,-500.0,0.00029041,2]
[314947749,1708692662371,-678.21,0.00029041,2]
[314947750,1708692662381,-500.0,0.00029041,2]
[314947751,1708692662396,-500.0,0.00029041,2]
[314947752,1708692662406,-2419.95,0.00029041,2]
[314947753,1708692662416,-1389.55,0.00029041,2]
[314947754,1708692662425,-500.0,0.00029041,2]
[314947755,1708692662435,-500.0,0.00029041,2]
[314947756,1708692662444,-500.0,0.00029041,2]
[314947757,1708692662454,-1094.13,0.00029041,2]
[314947758,1708692662463,-500.0,0.00029041,2]
[314947759,1708692662473,-500.0,0.00029041,2]
[314947760,1708692662483,-1067.45,0.00029041,2]
[314947761,1708692662492,-1378.02,0.00029041,2]
[314947762,1708692662502,-1250.67,0.00029041,2]
[314947763,1708692662511,-500.0,0.00029041,2]
[314947764,1708692662520,-839.9,0.00029041,2]
[314947765,1708692662530,-178.7135095,0.00029041,2]
[314947766,1708692662539,-1152.06,0.00029041,2]
[314947767,1708692662548,-168.6266503,0.00029041,2]
[314947768,1708692662558,-8575.79,0.00029041,2]
[314947769,1708692662567,-1035.56,0.00029041,2]
[314947770,1708692662576,-500.0,0.00029041,2]
[314947771,1708692662585,-500.0,0.00029041,2]
[314947772,1708692662595,-500.0,0.00029041,2]
[314947773,1708692662605,-500.0,0.00029041,2]
[314947774,1708692662614,-500.0,0.00029041,2]
[314947775,1708692662624,-500.0,0.00029041,2]
[314947776,1708692662634,-553.04,0.00029041,2]
[314947777,1708692662645,-500.0,0.00029041,2]
[314947778,1708692662655,-1094.11,0.00029041,2]
[314947779,1708692662664,-500.0,0.00029041,2]
[314947780,1708692662674,-2230.04,0.00029041,2]
[314947781,1708692662684,-610.11,0.00029041,2]
[314947782,1708692662694,-1728.91,0.00029041,2]
[314947783,1708692662703,-2471.7,0.00029041,2]
[314947784,1708692662712,-1384.33,0.00029041,2]
[314947785,1708692662722,-749.3,0.00029041,2]
[314947786,1708692662732,-500.0,0.00029041,2]
[314947787,1708692662742,-500.0,0.00029041,2]
[314947788,1708692662754,-807.94,0.00029041,2]
[314947789,1708692662764,-1029.11,0.00029041,2]
[314947790,1708692662774,-1015.68,0.00029041,2]
[314947791,1708692662783,-694.17,0.00029041,2]
[314947792,1708692662792,-785.24,0.00029041,2]
[314947793,1708692662802,-500.0,0.00029041,2]
[314947794,1708692662812,-500.0,0.00029041,2]
[314947795,1708692662821,-795.57,0.00029041,2]
[314947796,1708692662831,-1788.68,0.00029041,2]
[314947797,1708692662841,-2315.39,0.00029041,2]
[314947798,1708692662850,-1393.35,0.00029041,2]
[314947799,1708692662860,-500.0,0.00029041,2]
[314947800,1708692662869,-500.0,0.00029041,2]
[314947801,1708692662879,-617.77,0.00029041,2]
[314947802,1708692662891,-500.0,0.00029041,2]
[314947803,1708692662901,-2980.97,0.00029041,2]
[314947804,1708692662910,-977.62,0.00029041,2]
[314947805,1708692662920,-500.0,0.00029041,2]
[314947806,1708692662930,-500.0,0.00029041,2]
[314947807,1708692662940,-500.0,0.00029041,2]
[314947808,1708692662949,-500.0,0.00029041,2]
[314947809,1708692662959,-500.0,0.00029041,2]
[314947810,1708692662969,-500.0,0.00029041,2]
[314947811,1708692662978,-1880.69,0.00029041,2]
[314947812,1708692662988,-2152.11,0.00029041,2]
[314947813,1708692662998,-500.0,0.00029041,2]
[314947814,1708692663007,-477.98129123,0.00029041,2]
[314947815,1708692663017,-619.85,0.00029041,2]
[314947816,1708692663026,-642.74,0.00029041,2]
[314947817,1708692663035,-730.41,0.00029041,2]
[314947818,1708692663045,-500.0,0.00029041,2]
[314947819,1708692663055,-947.53,0.00029041,2]
[314947820,1708692663065,-639.34,0.00029041,2]
[314947821,1708692663075,-1392.77,0.00029041,2]
[314947822,1708692663086,-3459.37,0.00029041,2]
[314947823,1708692663095,-375.02376217,0.00029041,2]
[314947824,1708692663105,-554.51,0.00029041,2]
[314947825,1708692663115,-500.0,0.00029041,2]
[314947826,1708692663124,-7552.31,0.00029041,2]
[314947827,1708692663134,-875.12,0.00029041,2]
[314947828,1708692663144,-645.41,0.00029041,2]
[314947829,1708692663154,-4000.0,0.00029041,2]
[314947830,1708692663168,-2219.2623958,0.00029059,2]
[314947831,1708692663177,-15146.5405497,0.00029079,2]
[314947832,1708692663187,-157.02,0.00029108,2]
[314947833,1708692663196,-150.255,0.00029114,2]
[314947834,1708692663206,-250.0,0.00029114,2]
[314947835,1708692663215,-150.354,0.00029114,2]
[314947836,1708692663224,-150.151,0.00029114,2]
[314947837,1708692663233,-155.12,0.00029131,2]
[314947838,1708692663243,-500.0,0.00029178,2]
[314947839,1708692663252,-500.0,0.00029178,2]
[314947840,1708692663261,-500.0,0.00029178,2]
[314947841,1708692663272,-500.0,0.00029178,2]
[314947842,1708692663281,-503.84,0.00029178,2]
[314947843,1708692663290,-500.0,0.00029178,2]
[314947844,1708692663300,-500.0,0.00029178,2]
[314947845,1708692663309,-500.0,0.00029178,2]
[314947846,1708692663318,-500.0,0.00029178,2]
[314947847,1708692663327,-500.0,0.00029178,2]
[314947848,1708692663337,-500.0,0.00029178,2]
[314947849,1708692663346,-500.0,0.00029178,2]
[314947850,1708692663356,-500.0,0.00029178,2]
[314947851,1708692663365,-687.16,0.00029178,2]
[314947852,1708692663374,-4492.57,0.00029178,2]
[314947853,1708692663383,-500.0,0.00029178,2]
[314947854,1708692663394,-500.0,0.00029178,2]
[314947855,1708692663403,-505.22,0.00029178,2]
[314947856,1708692663412,-678.21,0.00029178,2]
[314947857,1708692663422,-500.0,0.00029178,2]
[314947858,1708692663431,-500.0,0.00029178,2]
[314947859,1708692663440,-500.0,0.00029178,2]
[314947860,1708692663450,-2419.95,0.00029178,2]
[314947861,1708692663460,-1389.55,0.00029178,2]
[314947862,1708692663470,-500.0,0.00029178,2]
[314947863,1708692663480,-500.0,0.00029178,2]
[314947864,1708692663489,-500.0,0.00029178,2]
[314947865,1708692663498,-1094.13,0.00029178,2]
[314947866,1708692663507,-500.0,0.00029178,2]
[314947867,1708692663517,-500.0,0.00029178,2]
[314947868,1708692663526,-1067.45,0.00029178,2]
[314947869,1708692663535,-1378.02,0.00029178,2]
[314947870,1708692663544,-1250.67,0.00029178,2]
[314947871,1708692663554,-298.06200349,0.00029178,2]
[314947872,1708692663564,-839.9,0.00029178,2]
[314947873,1708692663573,-1152.06,0.00029178,2]
[314947874,1708692663583,-8575.79,0.00029178,2]
[314947875,1708692663592,-1035.56,0.00029178,2]
[314947876,1708692663601,-256.44840316,0.00029178,2]
[314947877,1708692663611,-427.71803796,0.00029178,2]
[314947878,1708692663621,-500.0,0.00029178,2]
[314947879,1708692663630,-500.0,0.00029178,2]
[314947880,1708692663640,-500.0,0.00029178,2]
[314947881,1708692663651,-500.0,0.00029178,2]
[314947882,1708692663661,-553.04,0.00029178,2]
[314947883,1708692663670,-500.0,0.00029178,2]
[314947884,1708692663680,-1094.11,0.00029178,2]
[314947885,1708692663689,-500.0,0.00029178,2]
[314947886,1708692663699,-2230.04,0.00029178,2]
[314947887,1708692663708,-610.11,0.00029178,2]
[314947888,1708692663718,-1728.91,0.00029178,2]
[314947889,1708692663727,-151.0,0.00029178,7]
[314947890,1708692663736,-2471.7,0.00029178,2]
[314947891,1708692663746,-1384.33,0.00029178,2]
[314947892,1708692663756,-749.3,0.00029178,2]
[314947893,1708692663770,-500.0,0.00029178,2]
[314947894,1708692663779,-500.0,0.00029178,2]
[314947895,1708692663788,-807.94,0.00029178,2]
[314947896,1708692663798,-1029.11,0.00029178,2]
[314947897,1708692663808,-1015.68,0.00029178,2]
[314947898,1708692663817,-694.17,0.00029178,2]
[314947899,1708692663827,-785.24,0.00029178,2]
[314947900,1708692663837,-500.0,0.00029178,2]
[314947901,1708692663846,-500.0,0.00029178,2]
[314947902,1708692663856,-795.57,0.00029178,2]
[314947903,1708692663865,-1788.68,0.00029178,2]
[314947904,1708692663875,-2315.39,0.00029178,2]
[314947905,1708692663884,-1393.35,0.00029178,2]
[314947906,1708692663894,-500.0,0.00029178,2]
[314947907,1708692663903,-332.1115467,0.00029178,2]
[314947908,1708692663913,-617.77,0.00029178,2]
[314947909,1708692663923,-500.0,0.00029178,2]
[314947910,1708692663932,-1722.29583829,0.00029178,2]
[314947911,1708692664227,-1258.67416171,0.00029178,2]
[314947912,1708692664236,-977.62,0.00029178,2]
[314947913,1708692664245,-500.0,0.00029178,2]
[314947914,1708692664254,-500.0,0.00029178,2]
[314947915,1708692664263,-500.0,0.00029178,2]
[314947916,1708692664272,-500.0,0.00029178,2]
[314947917,1708692664281,-500.0,0.00029178,2]
[314947918,1708692664290,-500.0,0.00029178,2]
[314947919,1708692664298,-1880.69,0.00029178,2]
[314947920,1708692664308,-2152.11,0.00029178,2]
[314947921,1708692664317,-500.0,0.00029178,2]
[314947922,1708692664325,-619.85,0.00029178,2]
[314947923,1708692664334,-642.74,0.00029178,2]
[314947924,1708692664343,-730.41,0.00029178,2]
[314947925,1708692664352,-500.0,0.00029178,2]
[314947926,1708692664361,-947.53,0.00029178,2]
[314947927,1708692664370,-639.34,0.00029178,2]
[314947928,1708692664379,-151.0,0.00029178,7]
[314947929,1708692664388,-1392.77,0.00029178,2]
[314947930,1708692664398,-2031.22038748,0.00029178,2]
[314947931,1708692664756,-335.74335286,0.00027534,2]
[314947932,1708692664783,-370.76664714,0.00027534,2]
[314947933,1708692664792,-329.23335286,0.00027671,2]
[314947934,1708692664807,-369.93135995,0.00027671,2]
[314947935,1708692664823,-7.34528719,0.00027671,2]
[314947936,1708692664832,-252.25264533,0.00027808,2]
[314947937,1708692664843,-454.25735467,0.00027808,2]
[314947938,1708692664853,-706.51,0.00027945,2]
[314947939,1708692664862,-113.32764533,0.00028082,2]
[314947940,1708692664873,-386.67235467,0.00028082,2]
[314947941,1708692664882,-171.32764533,0.00028082,2]
[314947942,1708692665034,-166.02,0.00026768,2]
[314947943,1708692665044,-166.02,0.00027214,2]
[314947944,1708692665055,-500.0,0.00027397,2]
[314947945,1708692665074,-166.02,0.00027661,2]
[314947946,1708692665085,-13.9068726,0.00028082,2]
[314947947,1708692665097,-521.27548207,0.00028082,2]
[314947948,1708692665107,-500.0,0.00028219,2]
[314947949,1708692665117,-706.51,0.00028219,2]
[314947950,1708692665126,-500.0,0.00028356,2]
[314947951,1708692665136,-706.51,0.00028356,2]
[314947952,1708692665146,-721.76,0.00028493,2]
[314947953,1708692665155,-500.0,0.00028493,2]
[314947954,1708692665165,-706.51,0.00028493,2]
[314947955,1708692665176,-721.76,0.0002863,2]
[314947956,1708692665186,-500.0,0.0002863,2]
[314947957,1708692665196,-706.51,0.0002863,2]
[314947958,1708692665206,-721.76,0.00028767,2]
[314947959,1708692665216,-500.0,0.00028767,2]
[314947960,1708692665226,-706.51,0.00028767,2]
[314947961,1708692665236,-721.76,0.00028904,2]
[314947962,1708692665248,-500.0,0.00028904,2]
[314947963,1708692665257,-706.51,0.00028904,2]
[314947964,1708692665270,-482.72520791,0.00029039,2]
[314947965,1708692665279,-721.76,0.00029041,2]
[314947966,1708692665289,-406.39495069,0.00029041,2]
[314947967,1708692665300,-706.51,0.00029041,2]
[314947968,1708692665310,-1428.14961252,0.00029178,2]
[314947969,1708692665320,-554.51,0.00029178,2]
[314947970,1708692665330,-500.0,0.00029178,2]
[314947971,1708692665339,-151.0,0.00029178,7]
[314947972,1708692665348,-7552.31,0.00029178,2]
[314947973,1708692665358,-875.12,0.00029178,2]
[314947974,1708692665368,-645.41,0.00029178,2]
[314947975,1708692665378,-721.76,0.00029178,2]
[314947976,1708692665387,-706.51,0.00029178,2]
[314947977,1708692665398,-150.0,0.000292,2]
[314947978,1708692665408,-705.5474404,0.000292,2]
[314947979,1708692665418,-200.0,0.000292,2]
[314947980,1708692665427,-721.17,0.0002923,2]
[314947981,1708692665437,-209.31574409,0.00029245,2]
[314947982,1708692665447,-959.59488361,0.00029251,2]
[314947983,1708692665456,-20048.82029369,0.00029254,2]
[314947984,1708692665474,-87122.74310583,0.00029254,2]
[314947985,1708692665484,-500.0,0.00029256,2]
[314947986,1708692665493,-500.0,0.00029256,2]
[314947987,1708692665502,-500.0,0.00029256,2]
[314947988,1708692665512,-500.0,0.00029256,2]
[314947989,1708692665521,-500.0,0.00029256,2]
[314947990,1708692665530,-500.0,0.00029256,2]
[314947991,1708692665540,-500.0,0.00029256,2]
[314947992,1708692665549,-500.0,0.00029256,2]
[314947993,1708692665559,-500.0,0.00029256,2]
[314947994,1708692665569,-500.0,0.00029256,2]
[314947995,1708692665578,-500.0,0.00029256,2]
[314947996,1708692665588,-500.0,0.00029256,2]
[314947997,1708692665597,-500.0,0.00029256,2]
[314947998,1708692665606,-500.0,0.00029256,2]
[314947999,1708692665615,-500.0,0.00029256,2]
[314948000,1708692665624,-500.0,0.00029256,2]
[314948001,1708692665634,-500.0,0.00029256,2]
[314948002,1708692665644,-500.0,0.00029256,2]
[314948003,1708692665653,-500.0,0.00029256,2]
[314948004,1708692665663,-500.0,0.00029256,2]
[314948005,1708692665672,-500.0,0.00029256,2]
[314948006,1708692665682,-250.0,0.00029256,2]
[314948007,1708692665691,-500.0,0.00029256,2]
[314948008,1708692665702,-747.99504678,0.00029256,2]
[314948009,1708692665712,-448.15953551,0.00029256,2]
[314948010,1708692665721,-649.90602785,0.0002927,2]
[314948011,1708692665731,-3115.44150694,0.00029273,2]
[314948012,1708692665741,-107171.56339952,0.00029277,2]
[314948013,1708692665752,-150.70733575,0.00029288,2]
[314948014,1708692665765,-169.90441213,0.0002929,3]
[314948015,1708692665775,-152.0,0.0002929,3]
[314948016,1708692665790,-246.64414785,0.00029295,2]
[314948017,1708692665801,-9325.9365575,0.00029296,2]
[314948018,1708692665811,-7582.9702734,0.00029296,2]
[314948019,1708692665821,-152.91937168,0.00029303,2]
[314948020,1708692665832,-1147.34847841,0.00029308,4]
[314948021,1708692665842,-500.0,0.00029315,2]
[314948022,1708692665853,-151.0,0.00029315,7]
[314948023,1708692665863,-500.0,0.00029315,2]
[314948024,1708692665874,-500.0,0.00029315,2]
[314948025,1708692665884,-500.0,0.00029315,2]
[314948026,1708692665895,-503.84,0.00029315,2]
[314948027,1708692665906,-500.0,0.00029315,2]
[314948028,1708692665916,-500.0,0.00029315,2]
[314948029,1708692665927,-500.0,0.00029315,2]
[314948030,1708692665937,-500.0,0.00029315,2]
[314948031,1708692665948,-500.0,0.00029315,2]
[314948032,1708692665958,-500.0,0.00029315,2]
[314948033,1708692665969,-500.0,0.00029315,2]
[314948034,1708692665979,-500.0,0.00029315,2]
[314948035,1708692665990,-687.16,0.00029315,2]
[314948036,1708692666001,-500.0,0.00029315,2]
[314948037,1708692666011,-500.0,0.00029315,2]
[314948038,1708692666021,-505.22,0.00029315,2]
[314948039,1708692666032,-678.21,0.00029315,2]
[314948040,1708692666043,-500.0,0.00029315,2]
[314948041,1708692666054,-500.0,0.00029315,2]
[314948042,1708692666065,-2419.95,0.00029315,2]
[314948043,1708692666076,-1389.55,0.00029315,2]
[314948044,1708692666088,-252.21686992,0.00029315,2]
[314948045,1708692666099,-500.0,0.00029315,2]
[314948046,1708692666111,-500.0,0.00029315,2]
[314948047,1708692666122,-1094.13,0.00029315,2]
[314948048,1708692666132,-500.0,0.00029315,2]
[314948049,1708692666143,-202.05324048,0.00029315,2]
[314948050,1708692666154,-1067.45,0.00029315,2]
[314948051,1708692666163,-1378.02,0.00029315,2]
[314948052,1708692666174,-1250.67,0.00029315,2]
[314948053,1708692666185,-839.9,0.00029315,2]
[314948054,1708692666196,-1152.06,0.00029315,2]
[314948055,1708692666206,-8575.79,0.00029315,2]